[Event "Caplin Hastings Masters 2023-24"]
[Site "Hastings"]
[Date "2023.12.31"]
[Round "4.34"]
[White "Patel, Zain"]
[Black "Liu, Tianyi"]
[Result "1/2-1/2"]
[ECO "D85"]
[WhiteElo "1841"]
[BlackElo "2022"]
[Annotator "RC"]
[PlyCount "179"]
[EventDate "2023.12.18"]
[EventType "swiss"]
[EventCountry "ENG"]
[SourceTitle "playchess.com"]
[Source "ChessBase"]
[SourceQuality "1"]
[TimeControl "40/6000+30:3000+30"]

1. d4 {[%emt 0:00:05]} Nf6 {[%emt 0:00:05]} 2. c4 {[%emt 0:00:18]} g6 {[%emt 0:00:05]} 3. Nc3 {[%emt 0:00:22]} d5 {[%emt 0:00:06]} 4. cxd5 {[%emt 0:00:15]} Nxd5 {[%emt 0:00:05]} 5. Bd2 {[%emt 0:00:20]} Bg7 {[%emt 0:00:13]} 6. e4 {[%emt 0:00:47]} Nb6 {[%emt 0:00:09]} 7. Be3 {[%emt 0:00:21]} O-O {[%emt 0:00:08]} 8. Bb5 {[%emt 0:01:00]} c6 {[%emt 0:10:39]} 9. Be2 {[%emt 0:01:55]} f5 {[%emt 0:02:23]} 10. Qb3+ {[%emt 0:02:33]} Kh8 {[%emt 0:00:24]} 11. Nf3 {[%emt 0:00:46]} f4 {[%emt 0:07:50]} 12. Bd2 {[%emt 0:04:25]} Qd6 {[%emt 0:06:32]} 13. Rd1 {[%emt 0:22:01]} Be6 {[%emt 0:02:23]} 14. Qc2 {[%emt 0:03:15]} Na6 {[%emt 0:09:40]} 15. O-O {[%emt 0:05:40]} Bg4 {[%emt 0:08:28]} 16. Ne5 {[%emt 0:13:19]} Be6 {[%emt 0:04:15]} 17. Nd3 {[%emt 0:12:34]} Bc4 {[%emt 0:34:56]} 18. Ne5 {[%emt 0:12:04]} Be6 {[%emt 0:04:03]} 19. Nd3 {[%emt 0:01:53]} g5 {[%emt 0:06:00]} 20. d5 {[%emt 0:06:23]} cxd5 {[%emt 0:00:40]} 21. exd5 {[%emt 0:00:42]} Nxd5 {[%emt 0:02:18]} 22. Ne4 {[%emt 0:01:03]} Qc7 {[%emt 0:04:52]} 23. Qxc7 {[%emt 0:00:51]} Naxc7 {[%emt 0:00:04]} 24. Nxg5 {[%emt 0:00:31]} Bg8 {[%emt 0:01:11]} 25. Rc1 {[%emt 0:04:17]} e5 {[%emt 0:01:07]} 26. Rfd1 {[%emt 0:02:07]} h6 {[%emt 0:00:41]} 27. Ne4 {[%emt 0:00:33]} Ne6 {[%emt 0:00:26]} 28. Nec5 {[%emt 0:04:25]} Nd4 {[%emt 0:00:12]} 29. Bf1 {[%emt 0:02:12]} b6 {[%emt 0:00:15]} 30. Nb3 {[%emt 0:01:13]} Nxb3 {[%emt 0:01:35]} 31. axb3 {[%emt 0:00:05]} e4 {[%emt 0:00:19]} 32. Nb4 {[%emt 0:01:09]} Nxb4 {[%emt 0:02:02]} 33. Bxb4 {[%emt 0:00:06]} Rfd8 {[%emt 0:00:33]} 34. Rd6 {[%emt 0:02:05]} Bxb3 {[%emt 0:01:52]} 35. Rc7 {[%emt 0:02:25]} Rxd6 {[%emt 0:00:50]} 36. Bxd6 {[%emt 0:00:04]} f3 {[%emt 0:00:32]} 37. Re7 {[%emt 0:01:39]} Rd8 {[%emt 0:01:17]} 38. Bf4 {[%emt 0:00:44]} Rd1 {[%emt 0:00:00]} 39. Rxe4 {[%emt 0:00:53]} fxg2 {[%emt 0:00:00]} 40. Re8+ {[%emt 0:00:04]} Kh7 {[%emt 0:00:01]} 41. Kxg2 {[%emt 0:50:05]} Bd5+ {[%emt 0:50:36]} 42. f3 {[%emt 0:01:27]} Bxf3+ {[%emt 0:00:00]} 43. Kxf3 {[%emt 0:00:00]} Rxf1+ {[%emt 0:00:00]} 44. Kg4 {[%emt 0:00:00]} Kg6 {[%emt 0:00:00]} 45. Re7 {[%emt 0:00:00]} Bxb2 {[%emt 0:00:00]} 46. Rxa7 {[%emt 0:00:00]} Bc3 {[%emt 0:00:00]} 47. Rc7 {[%emt 0:00:00]} h5+ {[%emt 0:00:00]} 48. Kh3 {[%emt 0:00:00]} Bf6 {[%emt 0:00:00]} 49. Bg3 {[%emt 0:00:00]} Rb1 {[%emt 0:00:00]} 50. Rc6 {[%emt 0:00:00]} Kf5 {[%emt 0:00:00]} 51. Bf2 {[%emt 0:00:00]} b5 {[%emt 0:00:00]} 52. Rc5+ {[%emt 0:00:00]} Kg6 {[%emt 0:00:00]} 53. Rc6 {[%emt 0:00:00]} Rb3+ {[%emt 0:00:00]} 54. Kg2 {[%emt 0:00:00]} Rb4 {[%emt 0:00:54]} 55. Be1 {[%emt 0:00:00]} Rb2+ {[%emt 0:00:07]} 56. Kh3 {[%emt 0:00:00]} Rb3+ {[%emt 0:00:10]} 57. Kg2 {[%emt 0:00:00]} Kg7 {[%emt 0:01:18]} 58. Rc5 {[%emt 0:00:00]} Rb2+ {[%emt 0:05:30]} 59. Kh3 {[%emt 0:00:00]} b4 {[%emt 0:01:13]} 60. Bxb4 {[%emt 0:00:00]} Rxb4 {[%emt 0:00:09]} 61. Rxh5 {[%emt 0:00:00]} Kg6 {[%emt 0:00:26]} 62. Rd5 {[%emt 0:00:00]} Kf7 {[%emt 0:00:37]} 63. Rd2 {[%emt 0:00:00]} Ke6 {[%emt 0:00:24]} 64. Re2+ {[%emt 0:00:00]} Be5 {[%emt 0:00:10]} 65. Rf2 {[%emt 0:00:00]} Kd5 {[%emt 0:00:56]} 66. Re2 {[%emt 0:00:00]} Rb7 {[%emt 0:01:04]} 67. Kg4 {[%emt 0:00:00]} Rg7+ {[%emt 0:00:17]} 68. Kf5 {[%emt 0:00:00]} Rf7+ {[%emt 0:00:01]} 69. Kg6 {[%emt 0:00:00]} Rf6+ {[%emt 0:00:21]} 70. Kg5 {[%emt 0:00:00]} Ke6 {[%emt 0:00:09]} 71. h4 {[%emt 0:00:00]} Rf8 {[%emt 0:00:09]} 72. h5 {[%emt 0:00:00]} Rg8+ {[%emt 0:00:46]} 73. Kh6 {[%emt 0:00:00]} Kf5 {[%emt 0:00:27]} 74. Rf2+ {[%emt 0:00:04]} Bf4+ {[%emt 0:01:06]} 75. Kh7 {[%emt 0:00:35]} Rg5 {[%emt 0:00:22]} 76. h6 {[%emt 0:00:26]} Ke4 {[%emt 0:00:35]} 77. Kh8 {[%emt 0:02:14]} Be5+ {[%emt 0:01:05]} 78. Kh7 {[%emt 0:00:05]} Kd5 {[%emt 0:00:56]} 79. Rf6 {[%emt 0:01:14]} Rh5 {[%emt 0:00:28]} 80. Rg6 {[%emt 0:00:53]} Rh1 {[%emt 0:00:05]} 81. Rg5 {[%emt 0:01:22]} Ke6 {[%emt 0:00:14]} 82. Rxe5+ {[%emt 0:01:44]} Kxe5 {[%emt 0:00:01]} 83. Kg7 {[%emt 0:00:07]} Rg1+ {[%emt 0:00:05]} 84. Kf7 {[%emt 0:00:08]} Rh1 {[%emt 0:00:14]} 85. Kg7 {[%emt 0:00:04]} Ke6 {[%emt 0:00:10]} 86. h7 {[%emt 0:00:05]} Rg1+ {[%emt 0:00:14]} 87. Kf8 {[%emt 0:00:15]} Rh1 {[%emt 0:00:49]} 88. Kg7 {[%emt 0:00:04]} Ke7 {[%emt 0:00:38]} 89. h8=Q {[%emt 0:00:09]} Rxh8 {[%emt 0:01:56]} 90. Kxh8 {[%emt 0:00:34]} 1/2-1/2

[Event "Caplin Hastings Masters 2023-24"]
[Site "Hastings"]
[Date "2023.12.31"]
[Round "4.35"]
[White "White, Stuart A"]
[Black "Ruane, Brendan J"]
[Result "1-0"]
[ECO "A21"]
[WhiteElo "2014"]
[BlackElo "1823"]
[Annotator "RC"]
[PlyCount "77"]
[EventDate "2023.12.18"]
[EventType "swiss"]
[EventCountry "ENG"]
[SourceTitle "playchess.com"]
[Source "ChessBase"]
[SourceQuality "1"]
[TimeControl "40/6000+30:3000+30"]

1. c4 {[%emt 0:00:03]} Nc6 {[%emt 0:01:40]} 2. Nc3 {[%emt 0:00:42]} g6 {[%emt 0:00:57]} 3. d4 {[%emt 0:03:09]} e5 {[%emt 0:01:33]} 4. d5 {[%emt 0:01:08]} Na5 {[%emt 0:02:29]} 5. e4 {[%emt 0:02:35]} c5 {[%emt 0:07:52]} 6. f4 {[%emt 0:07:40]} f6 {[%emt 0:02:12]} 7. Nf3 {[%emt 0:04:49]} d6 {[%emt 0:03:31]} 8. Be2 {[%emt 0:07:47]} b6 {[%emt 0:00:21]} 9. a3 {[%emt 0:02:46]} Bh6 {[%emt 0:04:44]} 10. g3 {[%emt 0:05:22]} Ne7 {[%emt 0:01:03]} 11. b4 {[%emt 0:09:37]} Nb7 {[%emt 0:00:06]} 12. h4 {[%emt 0:00:58]} O-O {[%emt 0:04:37]} 13. h5 {[%emt 0:04:31]} Bg7 {[%emt 0:01:13]} 14. Bd2 {[%emt 0:11:20]} a6 {[%emt 0:13:05]} 15. Qc1 {[%emt 0:04:09]} Bd7 {[%emt 0:06:32]} 16. Rb1 {[%emt 0:02:45]} cxb4 {[%emt 0:06:54]} 17. axb4 {[%emt 0:00:06]} Qc7 {[%emt 0:00:09]} 18. Be3 {[%emt 0:15:22]} Rfc8 {[%emt 0:13:02]} 19. Qd2 {[%emt 0:03:17]} Bg4 {[%emt 0:12:42]} 20. hxg6 {[%emt 0:00:40]} hxg6 {[%emt 0:04:49]} 21. Ng1 {[%emt 0:01:11]} Bxe2 {[%emt 0:00:21]} 22. Ngxe2 {[%emt 0:00:05]} Qxc4 {[%emt 0:00:46]} 23. Bxb6 {[%emt 0:00:54]} exf4 {[%emt 0:03:22]} 24. gxf4 {[%emt 0:02:00]} f5 {[%emt 0:01:13]} 25. e5 {[%emt 0:02:14]} dxe5 {[%emt 0:00:20]} 26. d6 {[%emt 0:00:08]} Qc6 {[%emt 0:02:10]} 27. Qa2+ {[%emt 0:01:05]} Kf8 {[%emt 0:03:11]} 28. dxe7+ {[%emt 0:00:04]} Kxe7 {[%emt 0:00:10]} 29. Nd5+ {[%emt 0:02:41]} Kf8 {[%emt 0:00:11]} 30. Rd1 {[%emt 0:01:39]} exf4 {[%emt 0:00:38]} 31. Nexf4 {[%emt 0:01:45]} g5 {[%emt 0:05:09]} 32. Ne2 {[%emt 0:01:19]} Qe6 {[%emt 0:00:49]} 33. Qd2 {[%emt 0:04:16]} f4 {[%emt 0:00:46]} 34. Bd4 {[%emt 0:02:31]} Be5 {[%emt 0:03:05]} 35. Bxe5 {[%emt 0:01:50]} Qxe5 {[%emt 0:00:05]} 36. Qd4 {[%emt 0:01:38]} Qxd4 {[%emt 0:00:28]} 37. Nxd4 {[%emt 0:00:16]} Re8+ {[%emt 0:00:29]} 38. Kf2 {[%emt 0:00:38]} Rad8 {[%emt 0:01:28]} 39. Nc7 {[%emt 0:01:48]} 1-0

[Event "Caplin Hastings Masters 2023-24"]
[Site "Hastings"]
[Date "2023.12.31"]
[Round "4.36"]
[White "Thompson, Ian D"]
[Black "Byrn, Carsten"]
[Result "1-0"]
[ECO "A16"]
[WhiteElo "2011"]
[BlackElo "1823"]
[Annotator "NA RC"]
[PlyCount "75"]
[EventDate "2023.12.18"]
[EventType "swiss"]
[EventCountry "ENG"]
[SourceTitle "playchess.com"]
[Source "ChessBase"]
[SourceQuality "1"]
[TimeControl "40/6000+30:3000+30"]

1. c4 {[%emt 0:00:02]} Nf6 {[%emt 0:00:03]} 2. Nc3 {[%emt 0:00:08]} d5 {[%emt 0:00:02]} 3. cxd5 {[%emt 0:00:11]} Nxd5 {[%emt 0:00:09]} 4. g3 {[%emt 0:00:09]} g6 {[%emt 0:00:18]} 5. Bg2 {[%emt 0:00:08]} Nxc3 {[%emt 0:00:09]} 6. bxc3 {[%emt 0:00:05]} Bg7 {[%emt 0:00:08]} 7. Rb1 {[%emt 0:00:11]} Nc6 {[%emt 0:00:39]} 8. Nf3 {[%emt 0:02:10]} O-O {[%emt 0:02:21]} 9. O-O {[%emt 0:00:12]} b6 {[%emt 0:00:15]} 10. Qc2 {[%emt 0:14:05]} Bb7 {[%emt 0:02:50]} 11. d3 {[%emt 0:01:27]} e5 {[%emt 0:01:31]} 12. Rd1 {[%emt 0:10:45]} Qe7 {[%emt 0:04:26]} 13. e4 {[%emt 0:05:26]} Rfd8 {[%emt 0:00:42]} 14. Bg5 {[%emt 0:02:23]} f6 {[%emt 0:01:57]} 15. Be3 {[%emt 0:00:10]} Na5 {[%emt 0:05:45]} 16. Nd2 {[%emt 0:08:41]} c5 {[%emt 0:02:50]} 17. Nb3 {[%emt 0:01:59]} Nc6 {[%emt 0:00:41]} 18. a4 {[%emt 0:02:44]} Bc8 {[%emt 0:18:40]} 19. d4 {[%emt 0:10:48]} cxd4 {[%emt 0:02:02]} 20. cxd4 {[%emt 0:00:04]} Nxd4 {[%emt 0:00:19]} 21. Nxd4 {[%emt 0:00:36]} exd4 {[%emt 0:00:13]} 22. Rxd4 {[%emt 0:07:57]} Rxd4 {[%emt 0:01:45]} 23. Bxd4 {[%emt 0:00:02]} Be6 {[%emt 0:01:06]} 24. Bf1 {[%emt 0:04:33]} Rc8 {[%emt 0:01:19]} 25. Qb2 {[%emt 0:03:37]} f5 {[%emt 0:01:58]} 26. Re1 {[%emt 0:02:29]} Bxd4 {[%emt 0:07:11]} 27. Qxd4 {[%emt 0:00:08]} Qd7 {[%emt 0:04:40]} 28. Qb4 {[%emt 0:03:34]} fxe4 {[%emt 0:05:12]} 29. Qxe4 {[%emt 0:00:25]} Bd5 {[%emt 0:00:58]} 30. Qh4 {[%emt 0:04:52]} Re8 {[%emt 0:03:06]} 31. Rd1 {[%emt 0:03:54]} Qe6 {[%emt 0:02:08]} 32. Qd4 {[%emt 0:01:48]} Bb3 {[%emt 0:02:14]} 33. Rd3 {[%emt 0:02:44]} Ba2 {[%emt 0:02:47]} 34. Ra3 {[%emt 0:11:49]} Qd5 {[%emt 0:04:50]} 35. Qc3 {[%emt 0:00:36]} Re4 {[%emt 0:05:39]} 36. Qc8+ {[%emt 0:00:40]} Kg7 {[%emt 0:00:41]} 37. Rxa2 {[%emt 0:00:40]} Qxa2 {[%emt 0:00:30]} 38. Qb7+ {[%emt 0:00:04]} 1-0

[Event "Caplin Hastings Masters 2023-24"]
[Site "Hastings"]
[Date "2023.12.31"]
[Round "4.37"]
[White "Larkin, Benjamin"]
[Black "ONUOHA, Obioma"]
[Result "1-0"]
[ECO "C43"]
[WhiteElo "1814"]
[BlackElo "1995"]
[Annotator "NA RC"]
[PlyCount "97"]
[EventDate "2023.12.18"]
[EventType "swiss"]
[EventCountry "ENG"]
[SourceTitle "playchess.com"]
[Source "ChessBase"]
[SourceQuality "1"]
[TimeControl "40/6000+30:3000+30"]

1. e4 {[%emt 0:00:09]} e5 {[%emt 0:00:07]} 2. Nf3 {[%emt 0:00:05]} Nf6 {[%emt 0:00:06]} 3. d4 {[%emt 0:00:18]} Nxe4 {[%emt 0:00:22]} 4. Bd3 {[%emt 0:00:12]} d5 {[%emt 0:00:25]} 5. Nxe5 {[%emt 0:00:17]} Nd7 {[%emt 0:01:07]} 6. Nxd7 {[%emt 0:00:22]} Bxd7 {[%emt 0:00:16]} 7. O-O {[%emt 0:00:24]} Qh4 {[%emt 0:14:45]} 8. c4 {[%emt 0:00:14]} O-O-O {[%emt 0:00:44]} 9. c5 {[%emt 0:00:26]} g5 {[%emt 0:11:12]} 10. Nc3 {[%emt 0:00:23]} Nf6 {[%emt 0:17:27]} 11. Qf3 {[%emt 0:12:36]} Bg7 {[%emt 0:21:23]} 12. Be3 {[%emt 0:03:26]} Be6 {[%emt 0:26:34]} 13. b4 {[%emt 0:15:19]} Ng4 {[%emt 0:00:00]} 14. h3 {[%emt 0:00:17]} Nxe3 {[%emt 0:00:00]} 15. fxe3 {[%emt 0:00:05]} g4 {[%emt 0:04:18]} 16. hxg4 {[%emt 0:01:15]} h5 {[%emt 0:00:20]} 17. g5 {[%emt 0:03:29]} Qxg5 {[%emt 0:00:32]} 18. Bf5 {[%emt 0:00:34]} h4 {[%emt 0:01:09]} 19. Nxd5 {[%emt 0:00:34]} h3 {[%emt 0:03:34]} 20. g4 {[%emt 0:04:15]} Rxd5 {[%emt 0:00:51]} 21. Qxd5 {[%emt 0:00:07]} Qxe3+ {[%emt 0:01:41]} 22. Kh1 {[%emt 0:00:16]} Rd8 {[%emt 0:01:47]} 23. Rae1 {[%emt 0:03:17]} Rxd5 {[%emt 0:01:24]} 24. Rxe3 {[%emt 0:00:17]} Rxf5 {[%emt 0:00:55]} 25. gxf5 {[%emt 0:00:28]} Bd5+ {[%emt 0:00:14]} 26. Kh2 {[%emt 0:00:30]} Bxd4 {[%emt 0:00:25]} 27. Rd1 {[%emt 0:04:40]} Bxe3 {[%emt 0:00:41]} 28. Rxd5 {[%emt 0:00:07]} c6 {[%emt 0:00:27]} 29. Rd3 {[%emt 0:00:28]} Bg5 {[%emt 0:00:36]} 30. Kxh3 {[%emt 0:00:12]} Kc7 {[%emt 0:00:15]} 31. Kg4 {[%emt 0:00:07]} Be7 {[%emt 0:00:51]} 32. Rh3 {[%emt 0:01:12]} Kd7 {[%emt 0:01:18]} 33. Ra3 {[%emt 0:00:30]} a6 {[%emt 0:00:21]} 34. Rh3 {[%emt 0:00:20]} Bf6 {[%emt 0:00:30]} 35. Kf4 {[%emt 0:00:19]} Kd8 {[%emt 0:00:39]} 36. Ke4 {[%emt 0:00:13]} Ke7 {[%emt 0:00:14]} 37. Kd3 {[%emt 0:00:18]} Bb2 {[%emt 0:00:48]} 38. Kc4 {[%emt 0:00:19]} Be5 {[%emt 0:00:14]} 39. a4 {[%emt 0:01:01]} Kf6 {[%emt 0:00:17]} 40. Rd3 {[%emt 0:02:01]} Ke7 {[%emt 0:00:54]} 41. b5 {[%emt 0:50:42]} axb5+ {[%emt 0:50:17]} 42. axb5 {[%emt 0:00:08]} Bc7 {[%emt 0:00:52]} 43. Ra3 {[%emt 0:01:58]} cxb5+ {[%emt 0:00:33]} 44. Kxb5 {[%emt 0:00:02]} Bb8 {[%emt 0:00:19]} 45. Ra8 {[%emt 0:00:08]} Bh2 {[%emt 0:00:38]} 46. Ra7 {[%emt 0:00:12]} Kf6 {[%emt 0:00:33]} 47. Rxb7 {[%emt 0:00:05]} Bg3 {[%emt 0:00:32]} 48. c6 {[%emt 0:00:12]} Kxf5 {[%emt 0:00:19]} 49. Rxf7+ {[%emt 0:00:11]} 1-0

[Event "Caplin Hastings Masters 2023-24"]
[Site "Hastings"]
[Date "2023.12.31"]
[Round "4.38"]
[White "Gibbs, Dominic V"]
[Black "Sugden, John N"]
[Result "1/2-1/2"]
[ECO "D42"]
[WhiteElo "1795"]
[BlackElo "1968"]
[Annotator "RC"]
[PlyCount "54"]
[EventDate "2023.12.18"]
[EventType "swiss"]
[EventCountry "ENG"]
[SourceTitle "playchess.com"]
[Source "ChessBase"]
[SourceQuality "1"]
[TimeControl "40/6000+30:3000+30"]

1. e4 {[%emt 0:00:04]} c6 {[%emt 0:00:36]} 2. d4 {[%emt 0:00:07]} d5 {[%emt 0:00:08]} 3. exd5 {[%emt 0:00:05]} cxd5 {[%emt 0:00:15]} 4. c4 {[%emt 0:00:06]} Nf6 {[%emt 0:00:37]} 5. Nc3 {[%emt 0:00:06]} e6 {[%emt 0:01:52]} 6. Nf3 {[%emt 0:00:10]} Bb4 {[%emt 0:02:05]} 7. cxd5 {[%emt 0:00:15]} Nxd5 {[%emt 0:03:24]} 8. Bd2 {[%emt 0:00:14]} Nc6 {[%emt 0:05:35]} 9. Bd3 {[%emt 0:00:13]} Nf6 {[%emt 0:05:36]} 10. Bg5 {[%emt 0:12:48]} Be7 {[%emt 0:03:27]} 11. O-O {[%emt 0:03:03]} O-O {[%emt 0:01:56]} 12. Re1 {[%emt 0:10:16]} b6 {[%emt 0:10:29]} 13. Qe2 {[%emt 0:06:19]} Bb7 {[%emt 0:10:45]} 14. Rad1 {[%emt 0:00:27]} Nb4 {[%emt 0:04:39]} 15. Bb1 {[%emt 0:04:29]} Nbd5 {[%emt 0:04:07]} 16. a3 {[%emt 0:10:15]} Rc8 {[%emt 0:01:32]} 17. Qd3 {[%emt 0:03:25]} g6 {[%emt 0:01:03]} 18. Ne5 {[%emt 0:10:52]} Nh5 {[%emt 0:09:28]} 19. Bxe7 {[%emt 0:21:45]} Qxe7 {[%emt 0:00:25]} 20. Nxd5 {[%emt 0:03:00]} Bxd5 {[%emt 0:00:14]} 21. Qe3 {[%emt 0:02:20]} Rfd8 {[%emt 0:10:22]} 22. Rc1 {[%emt 0:07:14]} Nf6 {[%emt 0:16:35]} 23. Rxc8 {[%emt 0:01:45]} Rxc8 {[%emt 0:01:04]} 24. Rc1 {[%emt 0:00:16]} Rxc1+ {[%emt 0:03:47]} 25. Qxc1 {[%emt 0:00:02]} Qb7 {[%emt 0:00:21]} 26. f3 {[%emt 0:00:19]} Kg7 {[%emt 0:00:21]} 27. Kf2 {[%emt 0:02:57]} Ng8 {[%emt 0:02:18]} 1/2-1/2

[Event "Caplin Hastings Masters 2023-24"]
[Site "Hastings"]
[Date "2023.12.31"]
[Round "4.39"]
[White "Pert, Max"]
[Black "Howell, Oliver W"]
[Result "1-0"]
[ECO "D00"]
[WhiteElo "1950"]
[BlackElo "1782"]
[Annotator "RC"]
[PlyCount "91"]
[EventDate "2023.12.18"]
[EventType "swiss"]
[EventCountry "ENG"]
[SourceTitle "playchess.com"]
[Source "ChessBase"]
[SourceQuality "1"]
[TimeControl "40/6000+30:3000+30"]

1. d4 {[%emt 0:00:03]} d5 {[%emt 0:00:11]} 2. Bf4 {[%emt 0:00:18]} Nf6 {[%emt 0:00:48]} 3. Nc3 {[%emt 0:00:42]} c6 {[%emt 0:01:51]} 4. e3 {[%emt 0:00:47]} Bf5 {[%emt 0:01:30]} 5. f3 {[%emt 0:01:42]} e6 {[%emt 0:03:44]} 6. g4 {[%emt 0:01:16]} Bg6 {[%emt 0:00:49]} 7. h4 {[%emt 0:01:25]} h5 {[%emt 0:03:40]} 8. g5 {[%emt 0:02:09]} Ng8 {[%emt 0:02:47]} 9. Bd3 {[%emt 0:05:01]} Bxd3 {[%emt 0:05:35]} 10. Qxd3 {[%emt 0:00:08]} Bd6 {[%emt 0:01:39]} 11. g6 {[%emt 0:04:01]} f6 {[%emt 0:05:26]} 12. Nh3 {[%emt 0:04:53]} Ne7 {[%emt 0:05:52]} 13. O-O-O {[%emt 0:02:00]} Na6 {[%emt 0:05:13]} 14. a3 {[%emt 0:07:35]} Qc7 {[%emt 0:08:53]} 15. Bxd6 {[%emt 0:03:38]} Qxd6 {[%emt 0:00:12]} 16. e4 {[%emt 0:00:50]} O-O-O {[%emt 0:02:05]} 17. f4 {[%emt 0:05:15]} dxe4 {[%emt 0:14:41]} 18. Nxe4 {[%emt 0:00:38]} Qd5 {[%emt 0:02:05]} 19. c4 {[%emt 0:03:22]} Qd7 {[%emt 0:14:13]} 20. Ng1 {[%emt 0:07:53]} Nf5 {[%emt 0:07:29]} 21. Ne2 {[%emt 0:01:18]} Rh6 {[%emt 0:03:04]} 22. Rhg1 {[%emt 0:01:46]} Nxh4 {[%emt 0:03:13]} 23. c5 {[%emt 0:01:20]} Nf5 {[%emt 0:01:44]} 24. N2g3 {[%emt 0:00:47]} Qxd4 {[%emt 0:06:01]} 25. Nxf5 {[%emt 0:06:48]} Qxd3 {[%emt 0:03:13]} 26. Rxd3 {[%emt 0:01:32]} exf5 {[%emt 0:02:05]} 27. Rxd8+ {[%emt 0:00:08]} Kxd8 {[%emt 0:00:07]} 28. Nd6 {[%emt 0:00:05]} Ke7 {[%emt 0:00:34]} 29. Nxf5+ {[%emt 0:00:12]} Kf8 {[%emt 0:00:58]} 30. Nxh6 {[%emt 0:00:16]} gxh6 {[%emt 0:00:02]} 31. b4 {[%emt 0:00:45]} Nc7 {[%emt 0:01:24]} 32. Rd1 {[%emt 0:00:58]} Ne6 {[%emt 0:02:50]} 33. f5 {[%emt 0:00:14]} Ng7 {[%emt 0:00:55]} 34. Rd8+ {[%emt 0:00:52]} Ke7 {[%emt 0:00:08]} 35. Rb8 {[%emt 0:00:06]} h4 {[%emt 0:01:13]} 36. Rxb7+ {[%emt 0:00:12]} Kf8 {[%emt 0:00:04]} 37. Rf7+ {[%emt 0:01:06]} Kg8 {[%emt 0:00:19]} 38. Rxf6 {[%emt 0:00:17]} h3 {[%emt 0:00:37]} 39. Rd6 {[%emt 0:00:06]} Nxf5 {[%emt 0:00:31]} 40. Rd3 {[%emt 0:00:10]} Kg7 {[%emt 0:01:30]} 41. Rxh3 {[%emt 0:50:18]} Kxg6 {[%emt 0:01:29]} 42. b5 {[%emt 0:00:00]} cxb5 {[%emt 0:04:03]} 43. c6 {[%emt 0:00:00]} h5 {[%emt 0:13:22]} 44. c7 {[%emt 0:00:00]} Ne7 {[%emt 0:01:11]} 45. Re3 {[%emt 0:00:00]} Nc8 {[%emt 0:00:08]} 46. Re8 {[%emt 0:00:00]} 1-0

[Event "Caplin Hastings Masters 2023-24"]
[Site "Hastings"]
[Date "2023.12.31"]
[Round "4.40"]
[White "Batchelor, Paul A"]
[Black "Wilson, Matthew R"]
[Result "1-0"]
[ECO "D36"]
[WhiteElo "1937"]
[BlackElo "1771"]
[Annotator "RC"]
[PlyCount "89"]
[EventDate "2023.12.18"]
[EventType "swiss"]
[EventCountry "ENG"]
[SourceTitle "playchess.com"]
[Source "ChessBase"]
[SourceQuality "1"]
[TimeControl "40/6000+30:3000+30"]

1. d4 {[%emt 0:00:03]} d5 {[%emt 0:00:04]} 2. c4 {[%emt 0:00:05]} e6 {[%emt 0:00:04]} 3. Nc3 {[%emt 0:02:29]} Nf6 {[%emt 0:00:08]} 4. cxd5 {[%emt 0:00:18]} exd5 {[%emt 0:00:06]} 5. Bg5 {[%emt 0:00:12]} c6 {[%emt 0:00:48]} 6. Qc2 {[%emt 0:00:23]} Be7 {[%emt 0:01:11]} 7. e3 {[%emt 0:00:37]} Nbd7 {[%emt 0:02:52]} 8. Bd3 {[%emt 0:03:23]} h6 {[%emt 0:00:35]} 9. Bf4 {[%emt 0:01:17]} a5 {[%emt 0:04:10]} 10. h3 {[%emt 0:02:57]} O-O {[%emt 0:07:23]} 11. Nf3 {[%emt 0:00:19]} Re8 {[%emt 0:00:38]} 12. O-O {[%emt 0:05:17]} Nf8 {[%emt 0:12:13]} 13. Ne5 {[%emt 0:04:14]} Be6 {[%emt 0:00:43]} 14. Bg3 {[%emt 0:02:46]} Rc8 {[%emt 0:04:02]} 15. f4 {[%emt 0:04:01]} Bd7 {[%emt 0:10:31]} 16. a4 {[%emt 0:13:43]} Qc7 {[%emt 0:12:36]} 17. Rfc1 {[%emt 0:08:23]} Qb6 {[%emt 0:08:04]} 18. Be1 {[%emt 0:09:58]} c5 {[%emt 0:00:49]} 19. Qf2 {[%emt 0:00:27]} cxd4 {[%emt 0:07:21]} 20. exd4 {[%emt 0:00:26]} Bc6 {[%emt 0:09:07]} 21. Bd2 {[%emt 0:09:22]} Bb4 {[%emt 0:01:27]} 22. Be3 {[%emt 0:02:45]} Qd8 {[%emt 0:03:29]} 23. Kh1 {[%emt 0:00:57]} Qe7 {[%emt 0:01:23]} 24. Bd2 {[%emt 0:02:05]} Bxc3 {[%emt 0:02:37]} 25. Bxc3 {[%emt 0:00:19]} Ne4 {[%emt 0:00:08]} 26. Bxe4 {[%emt 0:04:31]} dxe4 {[%emt 0:00:02]} 27. Bxa5 {[%emt 0:01:51]} Bd5 {[%emt 0:05:17]} 28. Qe3 {[%emt 0:14:40]} h5 {[%emt 0:01:12]} 29. f5 {[%emt 0:00:28]} Nd7 {[%emt 0:05:20]} 30. Bc3 {[%emt 0:02:53]} Nf6 {[%emt 0:00:50]} 31. Be1 {[%emt 0:01:02]} Nd7 {[%emt 0:02:37]} 32. Bg3 {[%emt 0:00:51]} Nb6 {[%emt 0:00:55]} 33. a5 {[%emt 0:01:46]} Rxc1+ {[%emt 0:00:51]} 34. Rxc1 {[%emt 0:00:07]} Nc8 {[%emt 0:00:56]} 35. Nc4 {[%emt 0:02:54]} Qb4 {[%emt 0:01:14]} 36. Qc3 {[%emt 0:02:29]} Qxc3 {[%emt 0:01:09]} 37. Rxc3 {[%emt 0:00:05]} Bxc4 {[%emt 0:01:05]} 38. Rxc4 {[%emt 0:00:05]} Ne7 {[%emt 0:02:27]} 39. Rc5 {[%emt 0:02:03]} Nc6 {[%emt 0:02:11]} 40. d5 {[%emt 0:00:09]} Nd4 {[%emt 0:00:54]} 41. d6 {[%emt 0:51:01]} Kh7 {[%emt 0:01:38]} 42. d7 {[%emt 0:00:00]} Rd8 {[%emt 0:01:20]} 43. Rd5 {[%emt 0:00:00]} Nxf5 {[%emt 0:01:10]} 44. Bc7 {[%emt 0:00:00]} e3 {[%emt 0:03:28]} 45. Kg1 {[%emt 0:00:00]} 1-0